fUST/lending_fUST_20240511
["ID","MTS","AMOUNT","RATE_DAILY","PERIOD"]
[326815415,1715424863078,321.25365892,0.00035,30]
[326815416,1715424871984,267.42450803,0.00039999,31]
[326815417,1715424872012,500.0,0.00041096,31]
[326815418,1715424872040,455.6559901,0.00039999,31]
[326815419,1715424872073,500.0,0.00039999,31]
[326815420,1715424872108,337.79543774,0.00039999,31]
[326815421,1715424872139,500.0,0.00041096,31]
[326815422,1715424872180,500.0,0.00041096,31]
[326815423,1715424872211,500.0,0.00041096,31]
[326815424,1715424872242,500.0,0.00041096,31]
[326815425,1715424872269,500.0,0.00041096,31]
[326815426,1715424872311,450.94876013,0.00041096,31]
[326815427,1715424875180,204.36130364,0.0004,120]
[326815428,1715424876659,387.17100533,0.00045,120]
[326815429,1715424887886,1056.79661293,0.0003,10]
[326815430,1715424892659,309.73680426,0.00045,120]
[326815431,1715424899144,230.9668,0.00037791,30]
[326815432,1715425227153,-259.7,0.00018627,2]
[326815433,1715425259673,-150.0,0.00018627,2]
[326815434,1715425441043,-364.09682715,0.00018,2]
[326815435,1715425804306,1374.81989514,0.00015,2]
[326815493,1715425838229,-4198.15980498,0.00017999,2]
[326815495,1715425838238,-189.69444695,0.00018,2]
[326815497,1715425838247,-238.1,0.00018625,2]
[326815499,1715425838256,-894.67511144,0.00019044,2]
[326815501,1715425838265,-6835.4297592,0.00019045,2]
[326815503,1715425838274,-179.541506,0.00019178,2]
[326815504,1715425838282,-179.5415075,0.00019288,2]
[326815505,1715425838291,-150.0,0.00019391,2]
[326815506,1715425838300,-616.07698265,0.00019866,2]
[326815507,1715425838309,-302.33756864,0.00019867,2]
[326815508,1715425838319,-3490.21958311,0.0002,2]
[326815509,1715425838330,-480.0,0.0002,2]
[326815510,1715425838340,-263.9837175,0.0002091,2]
[326815511,1715425838350,-704.24788914,0.0002091,2]
[326815512,1715425838359,-413.87481836,0.0002091,2]
[326815513,1715425838369,-382.99519186,0.0002091,2]
[326815514,1715425838378,-186.63147511,0.0002091,2]
[326815515,1715425838387,-1506.0149933,0.0002091,2]
[326815516,1715425838397,-185.39269354,0.0002091,2]
[326815517,1715425838407,-292.19097324,0.0002091,2]
[326815518,1715425838416,-803.53621005,0.0002091,2]
[326815519,1715425838427,-3054.54205563,0.00020911,2]
[326815520,1715425838436,-5339.1513335,0.00020912,2]
[326815521,1715425838446,-18852.21189855,0.00020912,2]
[326815522,1715425838456,-258.9222367,0.00021598,2]
[326815523,1715425838465,-289.7486701,0.00021698,2]
[326815524,1715425838474,-238.1,0.00021913,2]
[326815525,1715425838483,-150.0,0.00021915,2]
[326815526,1715425838493,-166.666666,0.00021918,2]
[326815527,1715425838502,-4923.39976237,0.00022,2]
[326815528,1715425838511,-159.4535182,0.00022,2]
[326815529,1715425838521,-150.0,0.00022391,2]
[326815530,1715425838530,-166.666666,0.00022431,2]
[326815531,1715425838540,-166.666666,0.00022944,2]
[326815532,1715425838549,-264.54402462,0.00023,2]
[326815533,1715425838558,-714.97924015,0.00023,2]
[326815534,1715425838567,-166.666666,0.00023456,2]
[326815535,1715425838576,-160.2853847,0.00023562,2]
[326815536,1715425838585,-161.557429,0.00023562,2]
[326815537,1715425838594,-178.873837,0.00023562,2]
[326815538,1715425838604,-569.091861,0.00023562,2]
[326815539,1715425838613,-174.164322,0.00023562,2]
[326815540,1715425838623,-166.666666,0.00023969,2]
[326815541,1715425838632,-166.666666,0.00024482,2]
[326815542,1715425838642,-155.26465227,0.00025,2]
[326815543,1715425838651,-400.19675117,0.00025,2]
[326815544,1715425838660,-238.1,0.00025201,3]
[326815545,1715425838669,-150.0,0.00025203,3]
[326815546,1715425838678,-150.0,0.00025391,2]
[326815547,1715425838687,-258.92223666,0.00026541,2]
[326815548,1715425838697,-158.6892719,0.000266,2]
[326815549,1715425838706,-353.8,0.00026839,3]
[326815550,1715425838715,-176.9,0.00026839,3]
[326815551,1715425838724,-530.7,0.00026839,3]
[326815552,1715425838734,-500.0,0.00026999,2]
[326815553,1715425838743,-509.79807509,0.00026999,2]
[326815554,1715425838752,-182.86572184,0.00027,2]
[326815555,1715425838762,-154.8915759,0.00028,2]
[326815556,1715425838771,-2000.0,0.00028,3]
[326815557,1715425838781,-258.5044586,0.00028,2]
[326815558,1715425838791,-153.0,0.00028137,2]
[326815559,1715425838800,-154.8652301,0.00028137,2]
[326815560,1715425838810,-153.0,0.00028137,2]
[326815561,1715425838819,-153.0,0.00028137,2]
[326815562,1715425838828,-153.0,0.00028137,2]
[326815563,1715425838838,-153.0,0.00028137,2]
[326815564,1715425838847,-707.6,0.00028209,3]
[326815565,1715425838856,-353.8,0.00028209,3]
[326815566,1715425838866,-238.1,0.00028489,3]
[326815567,1715425838875,-306.5617653,0.0002926,2]
[326815568,1715425838884,-569.091861,0.00029531,2]
[326815569,1715425838894,-278.40915888,0.0003,2]
[326815570,1715425838903,-155.18879557,0.0003,4]
[326815571,1715425838912,-160.0,0.0003,2]
[326815572,1715425838922,-1333.0098584,0.0003,4]
[326815573,1715425838931,-258.92223666,0.00031485,2]
[326815574,1715425838941,-238.1,0.00031777,5]
[326815575,1715425838950,-161.557429,0.00033014,2]
[326815576,1715425838960,-467.14663347,0.00034,4]
[326815577,1715425838970,-194.03677992,0.00035,4]
[326815578,1715425838982,-172.47389585,0.00035,30]
[326815579,1715425838991,-321.25365892,0.00035,30]
[326815580,1715425839001,-238.1,0.00035065,7]
[326815581,1715425839010,-153.0,0.00035265,2]
[326815582,1715425839020,-153.0,0.00035265,2]
[326815583,1715425839030,-293.3341279,0.00035342,2]
[326815584,1715425839040,-153.0,0.00035342,2]
[326815585,1715425839050,-569.091861,0.00035501,2]
[326815586,1715425839062,-276.4086996,0.00035594,2]
[326815587,1715425839072,-214.6467998,0.00035616,120]
[326815588,1715425839082,-1257.82962681,0.00036,2]
[326815589,1715425839092,-153.0,0.00036087,2]
[326815590,1715425839101,-153.0,0.00036087,2]
[326815591,1715425839111,-153.0,0.00036164,2]
[326815592,1715425839123,-153.0,0.00036416,2]
[326815593,1715425839133,-153.0,0.00036416,2]
[326815594,1715425839144,-153.0,0.00036416,2]
[326815595,1715425839153,-153.0,0.00036416,2]
[326815596,1715425839162,-153.0,0.00036416,2]
[326815597,1715425839172,-153.0,0.00036416,2]
[326815598,1715425839182,-153.0,0.00036416,2]
[326815599,1715425839192,-153.0,0.00036416,2]
[326815600,1715425839201,-153.0,0.00036416,2]
[326815601,1715425839211,-153.0,0.00036416,2]
[326815602,1715425839220,-153.0,0.00036416,2]
[326815603,1715425839229,-153.0,0.00036416,2]
[326815604,1715425839239,-155.0942346,0.00036416,2]
[326815605,1715425839249,-153.0,0.00036416,2]
[326815606,1715425839258,-153.0,0.00036416,2]
[326815607,1715425839268,-153.0,0.00036416,2]
[326815608,1715425839277,-153.0,0.00036416,2]
[326815609,1715425839286,-153.0,0.00036416,2]
[326815610,1715425839295,-258.92223666,0.00036428,2]
[326815611,1715425839304,-10000.0,0.000365,20]
[326815612,1715425839314,-615.83743885,0.00037,5]
[326815613,1715425839323,-306.0,0.00037397,2]
[326815614,1715425839333,-153.0,0.00037452,2]
[326815615,1715425839342,-153.0,0.00037452,2]
[326815616,1715425839352,-153.0,0.00037452,2]
[326815617,1715425839361,-153.0,0.00037452,2]
[326815618,1715425839371,-153.0,0.00037452,2]
[326815619,1715425839380,-153.0,0.00037452,2]
[326815620,1715425839390,-153.0,0.00037452,2]
[326815621,1715425839399,-153.0,0.00037452,2]
[326815622,1715425839409,-153.0,0.00037452,2]
[326815623,1715425839418,-153.0,0.00037452,2]
[326815624,1715425839428,-153.0,0.00037452,2]
[326815625,1715425839437,-153.0,0.00037452,2]
[326815626,1715425839447,-230.9668,0.00037736,30]
[326815627,1715425839456,-3000.0,0.00037791,2]
[326815628,1715425839466,-541.21234494,0.00037791,4]
[326815629,1715425839475,-364.18525495,0.00037899,2]
[326815630,1715425839484,-625.32318956,0.00038184,15]
[326815631,1715425839494,-478.72912369,0.00038184,15]
[326815632,1715425839503,-500.0,0.00038184,15]
[326815633,1715425839512,-337.79543774,0.00038184,15]
[326815634,1715425839523,-10000.0,0.00038226,2]
[326815635,1715425839532,-238.1,0.00038354,7]
[326815636,1715425839541,-150.0,0.00038996,2]
[326815637,1715425839551,-1034.06073738,0.0004,4]
[326815638,1715425839565,-3245.99706305,0.0004,4]
[326815639,1715425839575,-2001.83717603,0.0004,2]
[326815640,1715425839584,-204.36130364,0.0004,120]
[326815641,1715425839594,-306.6742854,0.00040603,2]
[326815642,1715425839603,-462.15644443,0.00041096,30]
[326815643,1715425839612,-500.0,0.00041096,31]
[326815644,1715425839621,-500.0,0.00041096,31]
[326815645,1715425839631,-500.0,0.00041096,31]
[326815646,1715425839640,-500.0,0.00041096,31]
[326815647,1715425839797,-500.0,0.00041096,31]
[326815649,1715425839806,-500.0,0.00041096,31]
[326815651,1715425839817,-500.0,0.00041096,31]
[326815653,1715425839827,-500.0,0.00041096,31]
[326815655,1715425839837,-500.0,0.00041096,31]
[326815657,1715425839847,-500.0,0.00041096,31]
[326815659,1715425839857,-500.0,0.00041096,31]
[326815661,1715425839867,-424.47372745,0.00041096,31]
[326815738,1715427032459,-189.69444695,0.00018307,2]
[326815740,1715427032469,-3000.0,0.00018308,2]
[326815742,1715427032478,-204.472966,0.00018533,2]
[326815744,1715427032488,-150.0,0.00018823,2]
[326815746,1715427032497,-150.0,0.00018834,2]
[326815748,1715427032506,-701.44722507,0.00019238,2]
[326815750,1715427032516,-295.05723116,0.00019238,2]
[326815751,1715427032526,-744.67639595,0.00019238,2]
[326815752,1715427032535,-2254.72344677,0.00019239,2]
[326815753,1715427032543,-24890.0,0.0001924,2]
[326815754,1715427032552,-3861.99842737,0.0002,2]
[326815755,1715427032561,-670.43167037,0.00020141,2]
[326815756,1715427032571,-258.92223666,0.0002024,2]
[326815757,1715427032580,-4944.9155212,0.00020337,2]
[326815758,1715427032589,-545.62632414,0.00020337,2]
[326815759,1715427032599,-155.35271044,0.00020337,2]
[326815760,1715427032608,-187.08694253,0.00020338,2]
[326815762,1715427032618,-1901.35170892,0.00020338,2]
[326815764,1715427032628,-34393.78606692,0.00020339,2]
[326815766,1715427032637,-2150.4885757,0.0002034,2]
[326815805,1715427038978,-2308.55376733,0.0002034,2]
[326815806,1715427038988,-150.0,0.00020813,2]
[326815807,1715427038997,-547.23620566,0.00020913,2]
[326815808,1715427039006,-609.0,0.00020913,2]
[326815809,1715427039017,-151.08,0.0002162,2]
[326815810,1715427039027,-168.844372,0.00021918,2]
[326815811,1715427039037,-5230.59288808,0.00022,2]
[326815812,1715427039047,-159.48321964,0.00022,2]
[326815813,1715427039057,-150.0,0.00022792,2]
[326815814,1715427039067,-715.10955557,0.00023,2]
[326815815,1715427039078,-166.206688,0.00023562,2]
[326815816,1715427039088,-161.557429,0.00023562,2]
[326815817,1715427039097,-168.844372,0.00024482,2]
[326815818,1715427039106,-150.0,0.00024771,3]
[326815819,1715427039116,-401.61098799,0.00025,2]
[326815820,1715427039126,-3000.0,0.000266,2]
[326815821,1715427039136,-1591.40107,0.000266,2]
[326815822,1715427039146,-150.0,0.0002675,3]
[326815823,1715427039156,-204.472966,0.00027799,2]
[326815824,1715427039166,-154.81422293,0.00028,2]
[326815825,1715427039177,-150.0,0.00028729,3]
[326815826,1715427039187,-277.471605,0.0003,4]
[326815827,1715427039196,-670.43167032,0.00030337,2]
[326815828,1715427039206,-150.0,0.00030708,5]
[326815829,1715427039216,-339.4399029,0.00031,2]
[326815830,1715427039226,-339.4399029,0.00031,2]
[326815831,1715427039236,-339.4399029,0.00031,2]
[326815832,1715427039246,-339.4399029,0.00031,2]
[326815833,1715427039256,-339.4399029,0.00031,2]
[326815834,1715427039266,-339.4399029,0.00031,2]
[326815835,1715427039276,-45.12266308,0.00031,2]
[326815837,1715427040886,-294.31723982,0.00031,2]
[326815838,1715427040896,-339.4399029,0.00031,2]
[326815839,1715427040905,-339.4399029,0.00031,2]
[326815840,1715427040915,-339.4399029,0.00031,2]
[326815841,1715427040926,-339.4399029,0.00031,2]
[326815842,1715427040936,-339.4399029,0.00031,2]
[326815843,1715427040945,-339.4399029,0.00031,2]
[326815844,1715427040955,-339.4399029,0.00031,2]
[326815845,1715427040964,-339.4399029,0.00031,2]
[326815846,1715427040974,-339.4399029,0.00031,2]
[326815847,1715427040983,-339.4399029,0.00031,2]
[326815848,1715427040993,-339.4399029,0.00031,2]
[326815849,1715427041002,-339.4399029,0.00031,2]
[326815850,1715427041012,-339.4399,0.00031,2]
[326815851,1715427041022,-161.557429,0.00034904,2]
[326815852,1715427041032,-2341.05627252,0.00037,5]
[326815853,1715427041042,-160.0,0.00039543,3]
[326815854,1715427041052,-21655.23035829,0.0003978,7]
[326815855,1715427041062,-767.36,0.0003979,3]
[326815856,1715427041072,-359.0551876,0.00039799,31]
[326815857,1715427041081,-267.99565267,0.00039799,31]
[326815858,1715427041091,-18762.68,0.000398,2]
[326815859,1715427041101,-4281.20265619,0.0004,4]
[326815860,1715427041110,-1093.48376024,0.0004,4]
[326815861,1715427041120,-160.0,0.00040133,4]
[326815862,1715427041129,-231.79893608,0.00040196,3]
[326815863,1715427041139,-208.42845868,0.00040434,2]
[326815864,1715427041148,-670.43167032,0.00040534,28]
[326815865,1715427041158,-160.0,0.00040722,5]
[326815866,1715427041167,-160.0,0.00041,23]
[326815867,1715427041177,-28279.48,0.00041086,3]
[326815868,1715427041187,-4233.49315134,0.00041096,7]
[326815887,1715427043960,-7545.46402831,0.00041096,7]
[326815888,1715427043969,-360.80822996,0.00041096,4]
[326815889,1715427043978,-3000.0,0.00041096,2]
[326815890,1715427043988,-296.04436025,0.00041096,15]
[326815891,1715427043997,-3000.0,0.00041096,2]
[326815892,1715427044007,-3000.0,0.00041096,2]
[326815893,1715427044016,-500.0,0.00041096,31]
[326815894,1715427044025,-619.43458711,0.00041096,31]
[326815895,1715427044034,-67.52681646,0.00041096,31]
[326815918,1715427046532,-498.542,0.00022724,2]
[326815921,1715427046542,-110.458,0.00041096,31]
[326815966,1715427724798,465.48369792,9.999e-05,2]
[326815970,1715427776608,154.86036889,9.999e-05,2]
[326815975,1715428020578,309.47389438,9.999e-05,2]
[326815979,1715428186458,930.31002276,0.00014,2]
[326815983,1715428232534,-333.86275,0.00017999,2]
[326815984,1715428232595,-188.02760678,0.00017999,2]
[326815985,1715428232604,-189.69444695,0.00018,2]
[326815986,1715428232613,-309.38123752,0.00018607,2]
[326815987,1715428232623,-930.31002276,0.00018607,2]
[326815988,1715428232632,-770.40255084,0.0001882,2]
[326815989,1715428232641,-466.21063608,0.00019586,2]
[326815990,1715428232650,-163.71452413,0.00019586,2]
[326815991,1715428232659,-162.71094643,0.00019586,2]
[326815992,1715428232668,-1157.9324208,0.00019586,2]
[326815993,1715428232677,-1351.03018805,0.00019586,2]
[326815994,1715428232687,-194.76549096,0.00019586,2]
[326815995,1715428232696,-1561.45318716,0.00019586,2]
[326815996,1715428232705,-158.20036641,0.00019586,2]
[326815997,1715428232715,-1352.30703179,0.00019586,2]
[326815998,1715428232724,-301.59845587,0.00019587,2]
[326815999,1715428232733,-7884.1916548,0.00019587,2]
[326816000,1715428232742,-17318.9826503,0.00019588,2]
[326816001,1715428232751,-492.64403156,0.00019765,2]
[326816002,1715428232760,-606.33901129,0.0001988,2]
[326816003,1715428232769,-154.80835434,0.0002,2]
[326816004,1715428232778,-2012.10118066,0.0002,2]
[326816005,1715428232787,-251.81857805,0.00020911,2]
[326816006,1715428232796,-670.30750172,0.00020911,2]
[326816013,1715428238465,-356.05169669,0.00020911,2]
[326816014,1715428238474,-171.10179152,0.00020911,2]
[326816016,1715428238483,-816.46166498,0.00020911,2]
[326816018,1715428238492,-469.58481341,0.00020911,2]
[326816020,1715428238502,-404.34217778,0.00020911,2]
[326816024,1715428238531,-297.10504729,0.00020911,2]
[326816026,1715428238540,-266.79165539,0.00020912,2]
[326816028,1715428238549,-377.53939983,0.00020912,2]
[326816164,1715428246568,-521.55910022,0.00020911,2]
[326816165,1715428246577,-103.5730202,0.00020911,2]
[326816181,1715428317972,834.33905068,9.999e-05,2]
[326816182,1715428331548,154.79876161,9.999e-05,2]
[326816183,1715428843781,409.95141786,9.999e-05,2]
[326816184,1715428853034,484.14817384,9.999e-05,2]
[326816185,1715428868996,930.31002276,0.00014,2]
[326816192,1715429180739,230.1422143,0.00014,2]
[326816252,1715429431766,-154.79876161,0.00015944,2]
[326816253,1715429431777,-255.714575,0.00016166,2]
[326816254,1715429431789,-2631.19780464,0.00016684,2]
[326816255,1715429431800,-431.06352765,0.00016685,2]
[326816256,1715429431811,-290.34208507,0.00016685,2]
[326816257,1715429431822,-701.68383945,0.00016782,2]
[326816258,1715429431834,-5669.0457216,0.00016782,2]
[326816259,1715429431845,-58440.37648788,0.00016784,2]
[326816260,1715429431856,-10622.99007765,0.00016785,2]
[326816342,1715429439961,-14277.00992235,0.00016785,2]
[326816343,1715429439971,-929.19325588,0.00017097,2]
[326816344,1715429439980,-290.34208506,0.00017717,2]
[326816345,1715429439989,-483.77359895,0.00017997,2]
[326816346,1715429439998,-409.60880486,0.00017998,2]
[326816347,1715429440008,-1164.77458317,0.00017999,2]
[326816361,1715429442781,-39002.96422503,0.00017999,2]
[326816362,1715429442790,-189.69444695,0.00018,2]
[326816363,1715429442799,-1345.46378995,0.00018,2]
[326816364,1715429442809,-3343.90529574,0.0001862,2]
[326816365,1715429442818,-290.34208506,0.00018748,2]
[326816366,1715429442827,-154.93880964,0.00018817,2]
[326816367,1715429442836,-354.00365266,0.00018818,2]
[326816368,1715429442845,-604.89828257,0.0001882,2]
[326816369,1715429442854,-323.56362609,0.000189,2]
[326816370,1715429442863,-150.0,0.00019155,2]
[326816371,1715429442873,-150.0,0.00019155,2]
[326816372,1715429442882,-166.441025,0.00019178,2]
[326816373,1715429442891,-290.34208506,0.0001978,2]
[326816374,1715429442900,-2012.10118066,0.0002,2]
[326816375,1715429442909,-208.42845868,0.00020568,2]
[326816376,1715429442918,-290.34208506,0.00020811,2]
[326816377,1715429442927,-5889.47858982,0.00020908,7]
[326816378,1715429442935,-155.07906189,0.00020909,2]
[326816379,1715429442944,-744.4752283,0.00020909,2]
[326816380,1715429442954,-154.88543324,0.00020909,2]
[326816381,1715429442963,-904.17611442,0.00020909,2]
[326816382,1715429442972,-584.20614554,0.00020909,2]
[326816383,1715429442981,-284.36708911,0.00020909,2]
[326816385,1715429442991,-156.39130606,0.00020909,2]
[326816386,1715429443000,-447.0404404,0.00020909,2]
[326816387,1715429443009,-400.0,0.00020909,2]
[326816388,1715429443019,-1623.69250947,0.00020909,2]
[326816389,1715429443028,-280.67572607,0.00020909,2]
[326816390,1715429443037,-849.40273003,0.00020909,2]
[326816391,1715429443046,-67507.49755129,0.00020909,2]
[326816392,1715429443055,-228.085513,0.00020909,2]
[326816393,1715429443065,-213.025359,0.00020909,2]
[326816394,1715429443074,-151.0,0.00020909,2]
[326816395,1715429443083,-151.0,0.00020909,2]
[326816396,1715429443092,-151.0,0.00020909,2]
[326816397,1715429443101,-151.0,0.00020909,2]
[326816398,1715429443111,-151.675061,0.00020909,2]
[326816399,1715429443120,-527.50907274,0.0002091,2]
[326816400,1715429443128,-2340.69439263,0.0002091,2]
[326816401,1715429443138,-236.11595108,0.00020911,2]
[326816402,1715429443147,-1336.28920915,0.00020911,2]
[326816403,1715429443157,-154.84354733,0.00020911,2]
[326816404,1715429443166,-1215.77339326,0.00020911,2]
[326816405,1715429443175,-1578.14462466,0.00020911,2]
[326816406,1715429443185,-186.55115227,0.00020911,2]
[326816407,1715429443194,-311.84730404,0.00020911,2]
[326816408,1715429443203,-617.87224931,0.00020911,2]
[326816409,1715429443212,-155.03614823,0.00020911,2]
[326816410,1715429443222,-816.63039643,0.00020911,2]
[326816411,1715429443231,-294.30647378,0.00020911,2]
[326816412,1715429443240,-154.92484394,0.00020911,4]
[326816413,1715429443250,-1493.5731825,0.00020911,2]
[326816414,1715429443259,-412.67758215,0.00020911,2]
[326816415,1715429443268,-206.68276306,0.00020911,2]
[326816416,1715429443277,-720.75125023,0.00020911,2]
[326816417,1715429443286,-315.31138865,0.00020911,2]
[326816418,1715429443295,-154.90586739,0.00020911,2]
[326816419,1715429443305,-154.91322272,0.00020911,2]
[326816420,1715429443314,-154.99792824,0.00020911,2]
[326816421,1715429443323,-1092.87842809,0.00020911,2]
[326816422,1715429443332,-154.99553986,0.00020911,2]
[326816423,1715429443341,-154.92991053,0.00020911,2]
[326816424,1715429443351,-940.61834724,0.00020911,2]
[326816425,1715429443360,-155.16874356,0.00020911,2]
[326816426,1715429443370,-154.89924816,0.00020911,2]
[326816427,1715429443379,-155.02864487,0.00020911,2]
[326816428,1715429443388,-2363.57538629,0.00020912,2]
[326816429,1715429443397,-151.0,0.00020912,2]
[326816430,1715429443406,-151.0,0.00020912,2]
[326816431,1715429443415,-151.403726,0.00020912,2]
[326816432,1715429443424,-151.0,0.00020912,2]
[326816433,1715429443436,-151.0,0.00020912,2]
[326816434,1715429443445,-151.0,0.00020912,2]
[326816435,1715429443455,-160.544981,0.00020912,2]
[326816436,1715429443464,-160.544981,0.00020912,2]
[326816437,1715429443473,-151.0,0.00020912,2]
[326816438,1715429443482,-244.38497,0.00020912,2]
[326816439,1715429443492,-286.711992,0.00020912,2]
[326816440,1715429443503,-151.0,0.00020912,2]
[326816441,1715429443512,-151.0,0.00020912,2]
[326816442,1715429443522,-150.0,0.0002115,2]
[326816443,1715429443531,-151.0,0.00021918,2]
[326816444,1715429443540,-159.48321964,0.00022,2]
[326816445,1715429443550,-5230.59288808,0.00022,2]
[326816446,1715429443560,-715.10955557,0.00023,2]
[326816447,1715429443569,-150.0,0.00023144,2]
[326816448,1715429443578,-178.873837,0.00023562,2]
[326816449,1715429443588,-483.728081,0.00023562,2]
[326816450,1715429443597,-182.914113,0.00023562,2]
[326816451,1715429443607,-150.0,0.00023733,2]
[326816452,1715429443617,-494.0,0.00023733,2]
[326816453,1715429443627,-323.56362609,0.000239,2]
[326816454,1715429443636,-255.714575,0.00024249,2]
[326816455,1715429443645,-650.06377247,0.00024744,2]
[326816456,1715429443654,-524.69383608,0.00025,2]
[326816457,1715429443663,-150.0,0.00025139,3]
[326816458,1715429443672,-621.50318862,0.00025981,2]
[326816459,1715429443681,-3199.67631052,0.00026,7]
[326816460,1715429443690,-151.628092,0.00026,2]
[326816461,1715429443699,-151.0,0.00026,2]
[326816462,1715429443708,-151.802546,0.00026,2]
[326816463,1715429443718,-151.0,0.00026,2]
[326816464,1715429443730,-168.148057,0.00026,2]
[326816465,1715429443739,-151.0,0.00026,2]
[326816466,1715429443748,-151.0,0.00026,2]
[326816467,1715429443758,-190.93896,0.00026,2]
[326816468,1715429443767,-151.0,0.00026,2]
[326816469,1715429443776,-151.0,0.00026,2]
[326816470,1715429443785,-151.0,0.00026,2]
[326816471,1715429443794,-151.0,0.00026,2]
[326816472,1715429443803,-151.0,0.00026,2]
[326816473,1715429443812,-155.439418,0.00026,2]
[326816474,1715429443821,-151.0,0.00026,2]
[326816475,1715429443830,-153.22384,0.00026,2]
[326816476,1715429443840,-431.06352758,0.00027375,2]
[326816477,1715429443849,-154.81422293,0.00028,2]
[326816478,1715429443859,-297.45346364,0.00028,2]
[326816479,1715429443867,-151.0,0.00028,2]
[326816480,1715429443876,-194.592302,0.000289,2]
[326816481,1715429443886,-151.0,0.000289,2]
[326816482,1715429443896,-151.0,0.000289,2]
[326816483,1715429443906,-160.544981,0.000289,2]
[326816484,1715429443915,-160.544981,0.000289,2]
[326816485,1715429443923,-323.56362609,0.000289,2]
[326816486,1715429443933,-152.696116,0.00029119,2]
[326816487,1715429443942,-483.728081,0.00029531,2]
[326816488,1715429443951,-483.728081,0.00035501,2]
[326816489,1715429443962,-151.30524,0.00035616,2]
[326816490,1715429443972,-151.0,0.00035616,2]
[326816491,1715429443981,-151.0,0.00035616,2]
[326816492,1715429443990,-151.0,0.00035616,2]
[326816493,1715429444000,-183.48063,0.00035616,2]
[326816494,1715429444009,-151.0,0.00035616,2]
[326816495,1715429444018,-151.0,0.00035616,2]
[326816496,1715429444027,-151.0,0.00035616,2]
[326816497,1715429444037,-151.0,0.00035616,2]
[326816498,1715429444046,-151.0,0.00035616,2]
[326816499,1715429444056,-151.0,0.00035616,2]
[326816500,1715429444065,-151.0,0.00035616,2]
[326816501,1715429444074,-242.809515,0.00035616,2]
[326816502,1715429444084,-24934.07,0.00035616,3]
[326816503,1715429444092,-20778.4,0.00035616,3]
[326816504,1715429444101,-431.06352758,0.00038065,2]
[326816505,1715429444110,-5000.0,0.0004,29]
[326816506,1715429444119,-4293.22364172,0.0004,4]
[326816507,1715429444128,-151.0,0.0004,2]
[326816508,1715429444137,-780.42528944,0.0004,4]
[326816509,1715429444146,-248.52082371,0.00040685,3]
[326816510,1715429444155,-160.0,0.00041,23]
[326816511,1715429444164,-194.86570463,0.00041096,15]
[326816512,1715429444174,-300.67352497,0.00041096,4]
[326816513,1715429444183,-255.25967536,0.00041096,31]
[326816537,1715430416190,157.20588658,9.999e-05,2]
[326816620,1715430631885,-1895.18893597,0.00017987,2]
[326816621,1715430631894,-9387.04651107,0.00017988,2]
[326816622,1715430631903,-364.09682715,0.00018,2]
[326816623,1715430631912,-150.0,0.000189,2]
[326816624,1715430631921,-24900.0,0.00018994,2]
[326816625,1715430631929,-160.52966955,0.00019379,2]
[326816626,1715430631938,-150.0,0.00019479,2]
[326816627,1715430631948,-253.526018,0.00019487,2]
[326816628,1715430631957,-2012.10118066,0.0002,2]
[326816629,1715430631965,-181.91259599,0.00020603,2]
[326816630,1715430631974,-241.94041048,0.000207,2]
[326816631,1715430631983,-204.94636995,0.00020701,2]
[326816632,1715430631992,-331.14189699,0.00020702,5]
[326816633,1715430632001,-413.14065694,0.00020702,2]
[326816634,1715430632010,-47470.6188838,0.00020702,2]
[326816636,1715430632018,-8325.43252212,0.00020703,2]